fUSD/lending_fUSD_20240420
["ID","MTS","AMOUNT","RATE_DAILY","PERIOD"]
[323066095,1713622848517,-1000.0,0.00027595,60]
[323066096,1713622848539,-1000.0,0.00027595,60]
[323066097,1713622848563,-1000.0,0.00027595,30]
[323066098,1713622848586,-1000.0,0.00027595,30]
[323066099,1713622848609,-1000.0,0.00027595,30]
[323066100,1713622848632,-1000.0,0.00027595,30]
[323066101,1713622848865,-477.09856312,0.00027595,30]
[323066102,1713622848889,-356.5716127,0.00027595,30]
[323066103,1713622848913,-824.14493501,0.00027595,30]
[323066104,1713622848937,-1224.50705768,0.00027595,30]
[323066105,1713622848960,-690.13293587,0.00027595,30]
[323066106,1713622848983,-164.8078151,0.00027595,120]
[323066107,1713622849007,-483.04776747,0.00027595,120]
[323066108,1713622849031,-1000.0,0.00027595,30]
[323066109,1713622849053,-1000.0,0.00027595,30]
[323066110,1713622849076,-1000.0,0.00027595,30]
[323066111,1713622849098,-363.87949649,0.00027595,30]
[323066112,1713622849121,-1000.0,0.00027595,30]
[323066113,1713622849144,-1000.0,0.00027595,30]
[323066114,1713622849166,-1000.0,0.00027595,30]
[323066115,1713622849189,-1000.0,0.00027595,30]
[323066116,1713622849211,-1000.0,0.00027595,30]
[323066117,1713622849233,-807.25119837,0.00027595,30]
[323066118,1713622849255,-814.97243781,0.00027595,30]
[323066119,1713622849276,-651.56875649,0.00027595,30]
[323066120,1713622849299,-1181.50805886,0.00027595,120]
[323066121,1713622849321,-1240.16687202,0.00027595,120]
[323066122,1713622849343,-876.15686581,0.00027595,30]
[323066123,1713622849366,-396.88204285,0.00027595,60]
[323066124,1713622849389,-195.00177813,0.00027595,30]
[323066125,1713622849412,-1102.88177956,0.00027595,120]
[323066126,1713622849435,-328.97270627,0.00027595,30]
[323066127,1713622849457,-641.07051443,0.00027595,30]
[323066128,1713622849482,-166.2436843,0.00027595,120]
[323066129,1713622849505,-520.30993212,0.00027595,120]
[323066130,1713622849528,-310.33988885,0.00027595,30]
[323066131,1713622849550,-175.44531146,0.00027595,120]
[323066132,1713622849573,-547.27189536,0.00027595,120]
[323066133,1713622849597,-255.18636554,0.00027595,30]
[323066134,1713622849620,-2010.96079782,0.00027595,120]
[323066135,1713622849642,-1755.10280174,0.00027595,30]
[323066136,1713622849666,-834.18583598,0.00027595,30]
[323066137,1713622849689,-2371.20598115,0.00027595,30]
[323066138,1713622849713,-889.36169237,0.00027595,120]
[323066139,1713622849736,-933.2977533,0.00027595,120]
[323066140,1713622849759,-190.67404819,0.00027595,30]
[323066141,1713622849783,-276.75132928,0.00027595,120]
[323066142,1713622849807,-1183.19441198,0.00027595,30]
[323066143,1713622849832,-189.45040011,0.00027595,120]
[323066144,1713622849856,-987.17697962,0.00027595,120]
[323066145,1713622849880,-1595.08708013,0.00027595,120]
[323066146,1713622849904,-198.49520207,0.00027595,120]
[323066147,1713622849927,-153.8446477,0.00027595,120]
[323066148,1713622849950,-249.74508348,0.00027595,30]
[323066149,1713622849973,-339.23224045,0.00027595,120]
[323066150,1713622849998,-1241.39098828,0.00027595,30]
[323066151,1713622850023,-642.29999489,0.00027595,120]
[323066152,1713622850047,-424.15013599,0.00027595,120]
[323066153,1713622850071,-584.16947997,0.00027595,30]
[323066154,1713622850096,-757.82803682,0.00027595,120]
[323066155,1713622850119,-1079.36056267,0.00027595,30]
[323066156,1713622850144,-1051.46843296,0.00027595,30]
[323066157,1713622850169,-843.46118389,0.00027595,120]
[323066158,1713622850193,-4450.27,0.00027595,30]
[323066159,1713622850218,-4450.27,0.00027595,30]
[323066160,1713622850242,-4450.27,0.00027595,30]
[323066161,1713622850266,-4450.27,0.00027595,30]
[323066162,1713622850289,-4450.27,0.00027595,30]
[323066163,1713622850313,-4450.27,0.00027595,30]
[323066164,1713622850337,-4450.27,0.00027595,30]
[323066165,1713622850360,-4450.27,0.00027595,30]
[323066166,1713622850384,-4450.27,0.00027595,30]
[323066167,1713622850407,-4450.27,0.00027595,30]
[323066168,1713622850431,-4450.27,0.00027595,30]
[323066169,1713622850454,-4450.27,0.00027595,30]
[323066170,1713622850477,-4450.27,0.00027595,30]
[323066171,1713622850500,-4450.27,0.00027595,30]
[323066172,1713622850522,-4450.27,0.00027595,30]
[323066173,1713622850545,-4450.27,0.00027595,30]
[323066174,1713622850567,-4450.27,0.00027595,30]
[323066175,1713622850589,-4450.27,0.00027595,30]
[323066176,1713622850611,-4450.27,0.00027595,30]
[323066177,1713622850633,-4450.27,0.00027595,30]
[323066178,1713622850655,-4450.27,0.00027595,30]
[323066179,1713622850677,-4450.27,0.00027595,30]
[323066180,1713622850699,-4450.27,0.00027595,30]
[323066181,1713622850721,-4450.43929667,0.00027595,30]
[323066182,1713622850744,-599.29967133,0.00027595,30]
[323066183,1713622850768,-1000.0,0.00027595,60]
[323066184,1713622850790,-1000.0,0.00027595,30]
[323066185,1713622850813,-1000.0,0.00027595,60]
[323066186,1713622850839,-1000.0,0.00027595,30]
[323066187,1713622850862,-1000.0,0.00027595,60]
[323066188,1713622850885,-1000.0,0.00027595,60]
[323066189,1713622850907,-1000.0,0.00027595,60]
[323066190,1713622850931,-1000.0,0.00027595,30]
[323066191,1713622850953,-1000.0,0.00027595,30]
[323066192,1713622850975,-1000.0,0.00027595,30]
[323066193,1713622851252,-1000.0,0.00027595,30]
[323066194,1713622851276,-1000.0,0.00027595,30]
[323066195,1713622851300,-1000.0,0.00027595,30]
[323066196,1713622851324,-1000.0,0.00027595,30]
[323066197,1713622851348,-1000.0,0.00027595,30]
[323066198,1713622851372,-1000.0,0.00027595,30]
[323066199,1713622851396,-1000.0,0.00027595,30]
[323066200,1713622851419,-1000.0,0.00027595,30]
[323066201,1713622851443,-1000.0,0.00027595,30]
[323066202,1713622851467,-1000.0,0.00027595,30]
[323066203,1713622851490,-1000.0,0.00027595,30]
[323066204,1713622851513,-1000.0,0.00027595,30]
[323066205,1713622851536,-1000.0,0.00027595,30]
[323066206,1713622851560,-1000.0,0.00027595,30]
[323066207,1713622851583,-1000.0,0.00027595,30]
[323066208,1713622851608,-1000.0,0.00027595,30]
[323066209,1713622851631,-1000.0,0.00027595,30]
[323066210,1713622851655,-1000.0,0.00027595,30]
[323066211,1713622851679,-1000.0,0.00027595,30]
[323066212,1713622851703,-1000.0,0.00027595,30]
[323066213,1713622851727,-1000.0,0.00027595,30]
[323066214,1713622851750,-1000.0,0.00027595,30]
[323066215,1713622851774,-1000.0,0.00027595,30]
[323066216,1713622851798,-1000.0,0.00027595,30]
[323066217,1713622851828,-1000.0,0.00027595,30]
[323066218,1713622851852,-1000.0,0.00027595,30]
[323066219,1713622851877,-1000.0,0.00027595,30]
[323066220,1713622851899,-1000.0,0.00027595,30]
[323066221,1713622851924,-974.88947177,0.00027595,30]
[323066222,1713622851948,-1814.24244663,0.00027595,30]
[323066223,1713622851971,-666.7652466,0.00027595,120]
[323066224,1713622851995,-906.80815446,0.00027595,30]
[323066225,1713622852021,-1485.40908649,0.00027595,120]
[323066226,1713622852045,-1126.97895694,0.00027595,120]
[323066227,1713622852068,-973.76565226,0.00027595,30]
[323066228,1713622852093,-640.63223203,0.00027595,30]
[323066229,1713622852117,-1453.02751839,0.00027595,20]
[323066230,1713622852141,-861.49595591,0.00027595,120]
[323066231,1713622852165,-145000.0,0.00027595,120]
[323066232,1713622852191,-251.15704261,0.00027595,30]
[323066233,1713622852216,-500.0,0.00027595,30]
[323066234,1713622852237,-500.0,0.00027595,30]
[323066235,1713622852260,-500.0,0.00027595,30]
[323066236,1713622852284,-2260.0,0.00027595,120]
[323066237,1713622852308,-3588.90925509,0.00027595,120]
[323066238,1713622852333,-781.89377206,0.00027595,30]
[323066239,1713622852356,-138992.30875807,0.00027595,120]
[323066240,1713622852380,-312260.23612652,0.00027595,120]
[323066241,1713622852404,-83199.88695317,0.00027595,120]
[323066288,1713623224494,17304.34694903,0.00028,120]
[323066329,1713623431622,-175.3,0.00012562,2]
[323066331,1713623431632,-178.32981947,0.000137,2]
[323066332,1713623431644,-1072.31726149,0.000137,2]
[323066333,1713623431654,-400.0,0.00014235,2]
[323066334,1713623431663,-1005.97374924,0.00014262,2]
[323066335,1713623431674,-556.70320369,0.00014262,2]
[323066336,1713623431699,-652.36304707,0.00014262,2]
[323066337,1713623431708,-150.0,0.00014288,2]
[323066338,1713623431717,-150.0,0.00014288,2]
[323066339,1713623431726,-35244.67153218,0.00014289,2]
[323066340,1713623431736,-156.83,0.0001429,2]
[323066341,1713623431746,-1500.0,0.0001429,2]
[323066342,1713623431755,-577.0,0.0001463,2]
[323066343,1713623431764,-530.0,0.00014658,2]
[323066344,1713623431774,-175.3,0.00014826,2]
[323066345,1713623431783,-177.3,0.00014826,2]
[323066346,1713623431792,-311.79508672,0.000149,2]
[323066347,1713623431802,-964.119,0.000149,2]
[323066348,1713623431811,-179.45048991,0.000149,2]
[323066349,1713623431820,-186.17365748,0.000149,2]
[323066350,1713623431830,-2000.0,0.00014964,3]
[323066351,1713623431839,-152.04,0.0001499,2]
[323066352,1713623431849,-152.04,0.0001499,2]
[323066353,1713623431859,-152.04,0.0001499,2]
[323066354,1713623431869,-152.04,0.0001499,2]
[323066355,1713623431877,-152.04,0.0001499,2]
[323066356,1713623431886,-152.04,0.0001499,2]
[323066357,1713623431895,-152.04,0.0001499,2]
[323066358,1713623431905,-152.04,0.0001499,2]
[323066359,1713623431914,-150.54873055,0.0001499,2]
[323066360,1713623431923,-489.21099057,0.00014994,2]
[323066361,1713623431936,-203.32322521,0.00014995,2]
[323066362,1713623431945,-1296.90311868,0.00014997,2]
[323066363,1713623431954,-155.14124374,0.00014997,2]
[323066364,1713623431964,-166.67533515,0.00014997,2]
[323066365,1713623431973,-217.95469798,0.00014997,2]
[323066366,1713623431983,-155.21099947,0.00014997,2]
[323066367,1713623431993,-287.2064553,0.00014997,2]
[323066368,1713623432005,-495.1414103,0.00014997,2]
[323066369,1713623432015,-156.37954986,0.00014997,2]
[323066370,1713623432025,-165.58687479,0.00014998,2]
[323066371,1713623432037,-223.65370089,0.00014998,2]
[323066372,1713623432048,-705.82181173,0.00014998,2]
[323066373,1713623432059,-236.52606171,0.00014998,2]
[323066374,1713623432309,-224.59406512,0.00014999,2]
[323066375,1713623432319,-75974.27196975,0.00015,2]
[323066376,1713623432332,-7570.60051961,0.00015,2]
[323066377,1713623432351,-569.99999994,0.00015,2]
[323066378,1713623432363,-13308.087,0.00015,2]
[323066379,1713623432391,-29770.68738202,0.00015,2]
[323066380,1713623432403,-1738.0,0.00015,2]
[323066381,1713623432415,-375.5196,0.00015,2]
[323066382,1713623432427,-12368.22361097,0.00015,2]
[323066383,1713623432449,-297.182565,0.00015,2]
[323066384,1713623432461,-56253.4304,0.00015,2]
[323066385,1713623432481,-4878.81624473,0.00015,2]
[323066386,1713623432492,-14747.13876885,0.00015,2]
[323066387,1713623432504,-437.23504683,0.00015,2]
[323066388,1713623432515,-3114.82669203,0.00015,2]
[323066410,1713623437598,-26199.99999826,0.00015,2]
[323066412,1713623437610,-440.22431319,0.00015,2]
[323066414,1713623437621,-746.89027862,0.00015,2]
[323066419,1713623437656,-1414716.47484181,0.00015,2]
[323066421,1713623437665,-617.34653271,0.00015,2]
[323066423,1713623437674,-1474.54177032,0.00015,2]
[323066425,1713623437685,-200.0,0.00015,2]
[323066426,1713623437693,-155.0,0.00015,2]
[323066427,1713623437702,-800.0,0.00015041,2]
[323066428,1713623437711,-152.04,0.00015058,2]
[323066429,1713623437720,-150.54873055,0.00015058,2]
[323066430,1713623437729,-500.0,0.00015068,2]
[323066431,1713623437738,-500.0,0.00015068,2]
[323066432,1713623437747,-500.0,0.00015068,2]
[323066433,1713623437756,-501.69571805,0.00015068,2]
[323066434,1713623437765,-500.0,0.00015068,2]
[323066435,1713623437774,-142.70827601,0.00015068,2]
[323066436,1713623437785,-357.29172399,0.00015068,2]
[323066437,1713623437795,-580.17,0.00015068,2]
[323066438,1713623437805,-506.51995861,0.00015068,2]
[323066439,1713623437815,-500.0,0.00015068,2]
[323066440,1713623437825,-500.0,0.00015068,2]
[323066441,1713623437835,-500.0,0.00015068,2]
[323066442,1713623437845,-501.06622591,0.00015068,2]
[323066443,1713623437856,-500.0,0.00015068,2]
[323066444,1713623437865,-500.0,0.00015068,2]
[323066445,1713623437874,-500.0,0.00015068,2]
[323066446,1713623437883,-500.0,0.00015068,2]
[323066447,1713623437893,-500.0,0.00015068,2]
[323066448,1713623437902,-500.0,0.00015068,2]
[323066449,1713623437911,-500.0,0.00015068,2]
[323066450,1713623437920,-501.5795432,0.00015068,2]
[323066451,1713623437929,-500.0,0.00015068,2]
[323066452,1713623437939,-500.0,0.00015068,2]
[323066454,1713623437949,-500.0,0.00015068,2]
[323066456,1713623437958,-500.0,0.00015068,2]
[323066458,1713623437967,-500.0,0.00015068,2]
[323066460,1713623437975,-500.0,0.00015068,2]
[323066462,1713623437984,-500.0,0.00015068,2]
[323066464,1713623437994,-501.34543254,0.00015068,2]
[323066466,1713623438006,-500.0,0.00015068,2]
[323066468,1713623438015,-500.0,0.00015068,2]
[323066470,1713623438024,-501.52582648,0.00015068,2]
[323066472,1713623438033,-500.0,0.00015068,2]
[323066474,1713623438043,-452.12033487,0.00015068,2]
[323066476,1713623438052,-218.74433541,0.00015068,2]
[323066478,1713623438061,-500.0,0.00015068,2]
[323066480,1713623438072,-500.0,0.00015068,2]
[323066482,1713623438081,-500.0,0.00015068,2]
[323066484,1713623438090,-500.0,0.00015068,2]
[323066486,1713623438099,-500.0,0.00015068,2]
[323066488,1713623438108,-500.0,0.00015068,2]
[323066490,1713623438117,-500.0,0.00015068,2]
[323066492,1713623438126,-437.69010869,0.00015068,2]
[323066494,1713623438135,-500.0,0.00015068,2]
[323066496,1713623438144,-500.0,0.00015068,2]
[323066498,1713623438154,-150.0,0.00015068,2]
[323066500,1713623438163,-500.0,0.00015068,2]
[323066501,1713623438172,-500.0,0.00015068,2]
[323066503,1713623438182,-500.0,0.00015068,2]
[323066505,1713623438191,-500.0,0.00015068,2]
[323066508,1713623438201,-500.0,0.00015068,2]
[323066510,1713623438210,-500.0,0.00015068,2]
[323066512,1713623438219,-500.0,0.00015068,2]
[323066514,1713623438228,-500.0,0.00015068,2]
[323066515,1713623438238,-621.48774839,0.00015068,2]
[323066518,1713623438247,-500.0,0.00015068,2]
[323066520,1713623438257,-500.0,0.00015068,2]
[323066521,1713623438266,-500.0,0.00015068,2]
[323066523,1713623438275,-500.0,0.00015068,2]
[323066525,1713623438284,-500.0,0.00015068,2]
[323066527,1713623438293,-500.0,0.00015068,2]
[323066529,1713623438302,-500.0,0.00015068,2]
[323066531,1713623438312,-500.0,0.00015068,2]
[323066533,1713623438322,-500.0,0.00015068,2]
[323066535,1713623438331,-500.0,0.00015068,2]
[323066537,1713623438340,-500.0,0.00015068,2]
[323066539,1713623438350,-500.0,0.00015068,2]
[323066541,1713623438359,-500.0,0.00015068,2]
[323066543,1713623438368,-500.0,0.00015068,2]
[323066545,1713623438378,-500.0,0.00015068,2]
[323066547,1713623438387,-500.0,0.00015068,2]
[323066549,1713623438396,-500.0,0.00015068,2]
[323066551,1713623438405,-500.0,0.00015068,2]
[323066553,1713623438414,-500.0,0.00015068,2]
[323066555,1713623438424,-318.44843734,0.00015068,2]
[323066557,1713623438433,-522.88124465,0.00015068,2]
[323066559,1713623438442,-500.0,0.00015068,2]
[323066562,1713623438452,-500.0,0.00015068,2]
[323066564,1713623438461,-500.0,0.00015068,2]
[323066565,1713623438470,-500.0,0.00015068,2]
[323066568,1713623438482,-500.0,0.00015068,2]
[323066570,1713623438491,-500.0,0.00015068,2]
[323066572,1713623438500,-500.0,0.00015068,2]
[323066574,1713623438509,-500.0,0.00015068,2]
[323066576,1713623438518,-500.0,0.00015068,2]
[323066578,1713623438527,-500.0,0.00015068,2]
[323066580,1713623438536,-500.0,0.00015068,2]
[323066582,1713623438545,-500.0,0.00015068,2]
[323066584,1713623438554,-500.0,0.00015068,2]
[323066586,1713623438563,-500.0,0.00015068,2]
[323066588,1713623438572,-500.0,0.00015068,2]
[323066590,1713623438581,-500.0,0.00015068,2]
[323066592,1713623438590,-500.0,0.00015068,2]
[323066594,1713623438600,-500.0,0.00015068,2]
[323066596,1713623438610,-500.0,0.00015068,2]
[323066598,1713623438619,-500.0,0.00015068,2]
[323066600,1713623438628,-500.0,0.00015068,2]
[323066602,1713623438636,-500.0,0.00015068,2]
[323066604,1713623438645,-500.0,0.00015068,2]
[323066606,1713623438654,-500.0,0.00015068,2]
[323066608,1713623438663,-500.0,0.00015068,2]
[323066610,1713623438672,-500.0,0.00015068,2]
[323066612,1713623438680,-500.0,0.00015068,2]
[323066614,1713623438690,-500.0,0.00015068,2]
[323066616,1713623438699,-500.0,0.00015068,2]
[323066618,1713623438708,-500.0,0.00015068,2]
[323066620,1713623438717,-500.0,0.00015068,2]
[323066622,1713623438727,-500.0,0.00015068,2]
[323066624,1713623438735,-500.0,0.00015068,2]
[323066626,1713623438744,-500.0,0.00015068,2]
[323066628,1713623438753,-500.0,0.00015068,2]
[323066630,1713623438762,-500.0,0.00015068,2]
[323066632,1713623438771,-500.0,0.00015068,2]
[323066634,1713623438780,-500.0,0.00015068,2]
[323066636,1713623438789,-500.0,0.00015068,2]
[323066638,1713623438798,-500.0,0.00015068,2]
[323066640,1713623438806,-500.0,0.00015068,2]
[323066642,1713623438815,-500.0,0.00015068,2]
[323066644,1713623438824,-500.0,0.00015068,2]
[323066646,1713623438833,-500.0,0.00015068,2]
[323066648,1713623438842,-500.0,0.00015068,2]
[323066650,1713623438851,-500.0,0.00015068,2]
[323066652,1713623438859,-500.0,0.00015068,2]
[323066654,1713623438868,-255.87506708,0.00015068,2]
[323066656,1713623438878,-500.0,0.00015068,2]
[323066658,1713623438887,-500.0,0.00015068,2]
[323066660,1713623438896,-500.0,0.00015068,2]
[323066662,1713623438905,-500.0,0.00015068,2]
[323066664,1713623438914,-500.0,0.00015068,2]
[323066666,1713623438923,-500.0,0.00015068,2]
[323066668,1713623438934,-500.0,0.00015068,2]
[323066670,1713623438944,-500.0,0.00015068,2]
[323066672,1713623438953,-500.0,0.00015068,2]
[323066674,1713623438962,-500.0,0.00015068,2]
[323066676,1713623438971,-500.0,0.00015068,2]
[323066678,1713623438980,-500.0,0.00015068,2]
[323066680,1713623438989,-500.0,0.00015068,2]
[323066682,1713623439000,-500.0,0.00015068,2]
[323066684,1713623439009,-500.0,0.00015068,2]
[323066686,1713623439018,-500.0,0.00015068,2]
[323066688,1713623439027,-500.0,0.00015068,2]
[323066690,1713623439037,-500.0,0.00015068,2]
[323066692,1713623439046,-500.0,0.00015068,2]
[323066694,1713623439055,-500.0,0.00015068,2]
[323066696,1713623439064,-500.0,0.00015068,2]
[323066698,1713623439074,-500.0,0.00015068,2]
[323066700,1713623439084,-500.0,0.00015068,2]
[323066702,1713623439093,-500.0,0.00015068,2]
[323066703,1713623439102,-500.0,0.00015068,2]
[323066705,1713623439111,-500.0,0.00015068,2]
[323066708,1713623439121,-500.0,0.00015068,2]
[323066710,1713623439130,-500.0,0.00015068,2]
[323066711,1713623439139,-603.84454169,0.00015068,2]
[323066713,1713623439149,-500.0,0.00015068,2]
[323066715,1713623439158,-500.0,0.00015068,2]
[323066717,1713623439167,-500.0,0.00015068,2]
[323066719,1713623439176,-376.77175795,0.00015068,2]
[323066722,1713623439187,-500.0,0.00015068,2]
[323066724,1713623439196,-500.0,0.00015068,2]
[323066725,1713623439206,-500.0,0.00015068,2]
[323066728,1713623439215,-500.0,0.00015068,2]
[323066729,1713623439225,-500.0,0.00015068,2]
[323066731,1713623439235,-506.82887229,0.00015068,2]
[323066734,1713623439244,-500.0,0.00015068,2]
[323066736,1713623439255,-500.0,0.00015068,2]
[323066738,1713623439266,-500.0,0.00015068,2]
[323066740,1713623439275,-500.0,0.00015068,2]
[323066742,1713623439284,-500.0,0.00015068,2]
[323066744,1713623439293,-500.0,0.00015068,2]
[323066746,1713623439303,-500.0,0.00015068,2]
[323066748,1713623439312,-500.0,0.00015068,2]
[323066750,1713623439321,-500.0,0.00015068,2]
[323066752,1713623439330,-500.0,0.00015068,2]
[323066753,1713623439339,-500.0,0.00015068,2]
[323066756,1713623439348,-536.39502408,0.00015068,2]
[323066758,1713623439357,-500.0,0.00015068,2]
[323066760,1713623439366,-500.0,0.00015068,2]
[323066763,1713623439375,-500.0,0.00015068,2]
[323066765,1713623439384,-500.0,0.00015068,2]
[323066767,1713623439393,-500.0,0.00015068,2]
[323066769,1713623439402,-500.0,0.00015068,2]
[323066771,1713623439411,-500.0,0.00015068,2]
[323066773,1713623439419,-500.0,0.00015068,2]
[323066775,1713623439429,-500.0,0.00015068,2]
[323066777,1713623439440,-500.0,0.00015068,2]
[323066779,1713623439449,-500.0,0.00015068,2]
[323066782,1713623439458,-500.0,0.00015068,2]
[323066785,1713623439467,-500.0,0.00015068,2]
[323066788,1713623439476,-500.0,0.00015068,2]
[323066790,1713623439485,-500.0,0.00015068,2]
[323066792,1713623439494,-500.0,0.00015068,2]
[323066794,1713623439503,-500.0,0.00015068,2]
[323066796,1713623439513,-517.23647652,0.00015068,2]
[323066798,1713623439522,-500.0,0.00015068,2]
[323066800,1713623439531,-809.5,0.00015068,2]
[323066802,1713623439539,-500.0,0.00015068,2]
[323066804,1713623439548,-500.0,0.00015068,2]
[323066805,1713623439558,-500.0,0.00015068,2]
[323066807,1713623439567,-500.0,0.00015068,2]
[323066810,1713623439577,-500.0,0.00015068,2]
[323066812,1713623439586,-500.0,0.00015068,2]
[323066814,1713623439595,-500.0,0.00015068,2]
[323066816,1713623439604,-885.05,0.00015068,2]
[323066818,1713623439613,-500.0,0.00015068,2]
[323066820,1713623439623,-500.0,0.00015068,2]
[323066822,1713623439631,-500.0,0.00015068,2]
[323066824,1713623439640,-500.0,0.00015068,2]
[323066826,1713623439649,-500.0,0.00015068,2]
[323066828,1713623439658,-500.0,0.00015068,2]
[323066830,1713623439667,-500.0,0.00015068,2]
[323066831,1713623439676,-500.0,0.00015068,2]
[323066832,1713623439685,-500.0,0.00015068,2]
[323066833,1713623439694,-500.0,0.00015068,2]
[323066834,1713623439703,-500.0,0.00015068,2]
[323066835,1713623439712,-500.0,0.00015068,2]
[323066836,1713623439722,-500.0,0.00015068,2]
[323066837,1713623439730,-500.0,0.00015068,2]
[323066838,1713623439739,-500.0,0.00015068,2]
[323066839,1713623439748,-500.0,0.00015068,2]
[323066863,1713623439757,-500.0,0.00015068,2]
[323066866,1713623439976,-500.0,0.00015068,2]
[323066868,1713623439985,-500.0,0.00015068,2]
[323066870,1713623439996,-500.0,0.00015068,2]
[323066872,1713623440006,-500.0,0.00015068,2]
[323066874,1713623440014,-2714.35,0.00015068,2]
[323066876,1713623440025,-500.0,0.00015068,2]
[323066878,1713623440035,-500.0,0.00015068,2]
[323066880,1713623440043,-500.0,0.00015068,2]
[323066882,1713623440052,-500.0,0.00015068,2]
[323066884,1713623440062,-500.0,0.00015068,2]
[323066885,1713623440071,-500.0,0.00015068,2]
[323066888,1713623440081,-500.0,0.00015068,2]
[323066890,1713623440091,-500.0,0.00015068,2]
[323066892,1713623440100,-461.17977541,0.00015068,2]
[323066893,1713623440109,-500.0,0.00015068,2]
[323066895,1713623440118,-200.347625,0.00015256,2]
[323066897,1713623440127,-188.318385,0.00015256,2]
[323066900,1713623440137,-200.347626,0.00015256,2]
[323066902,1713623440146,-316.139639,0.00015256,2]
[323066903,1713623440155,-397.063628,0.00015256,2]
[323066905,1713623440165,-277.505031,0.00015256,2]
[323066908,1713623440174,-200.347625,0.00015256,2]
[323066910,1713623440184,-308.450978,0.00015256,2]
[323066912,1713623440193,-396.974444,0.00015256,2]
[323066913,1713623440202,-277.450682,0.00015256,2]
[323066916,1713623440212,-166.619026,0.00015256,2]
[323066918,1713623440221,-396.974444,0.00015256,2]
[323066920,1713623440230,-277.450681,0.00015256,2]
[323066922,1713623440239,-308.450978,0.00015256,2]
[323066924,1713623440248,-166.619026,0.00015256,2]
[323066925,1713623440258,-308.450978,0.00015256,2]
[323066928,1713623440267,-396.974443,0.00015256,2]
[323066930,1713623440276,-277.450682,0.00015256,2]
[323066932,1713623440285,-166.619026,0.00015256,2]
[323066934,1713623440294,-430.869616,0.00015256,2]
[323066936,1713623440303,-277.450681,0.00015256,2]
[323066938,1713623440312,-168.31,0.00015338,2]
[323066940,1713623440321,-500.0,0.00015342,2]
[323066942,1713623440330,-500.0,0.00015342,2]
[323066944,1713623440339,-500.0,0.00015342,2]
[323066946,1713623440349,-500.0,0.00015342,2]
[323066947,1713623440358,-500.0,0.00015342,2]
[323066950,1713623440368,-500.0,0.00015342,2]
[323066952,1713623440377,-500.0,0.00015342,2]
[323066954,1713623440386,-468.62,0.00015342,2]
[323066956,1713623440395,-500.0,0.00015342,2]
[323066958,1713623440404,-191.75,0.00015342,2]
[323066960,1713623440413,-500.0,0.00015342,2]
[323066962,1713623440423,-255.03,0.00015342,2]
[323066964,1713623440432,-499.93,0.00015342,2]
[323066966,1713623440442,-500.0,0.00015342,2]
[323066967,1713623440451,-216.0,0.00015342,2]
[323066969,1713623440460,-500.0,0.00015342,2]
[323066972,1713623440470,-500.0,0.00015342,2]
[323066973,1713623440479,-500.0,0.00015342,2]
[323066976,1713623440488,-282.08,0.00015342,2]
[323066978,1713623440498,-500.0,0.00015342,2]
[323066979,1713623440507,-500.0,0.00015342,2]
[323066982,1713623440517,-500.0,0.00015342,2]
[323066984,1713623440526,-501.82552468,0.00015342,2]
[323066986,1713623440535,-500.0,0.00015342,2]
[323066987,1713623440544,-500.0,0.00015342,2]